[Event "Cerrado Blitz Quart 2018"]
[Site "Quart (Valencia), Spain"]
[Date "2018.08.30"]
[Round "1.1"]
[White "Vega Gutierrez, Sabrina"]
[Black "Pena Riasco, Alexander"]
[Result "1-0"]
[TimeControl "7 minutos +3s por jugada"]
[WhiteTitle "IM"]
[BlackTitle "FM"]
[WhiteFideId "2219026"]
[BlackFideId "4403339"]
[WhiteElo "2188"]
[BlackElo "2119"]

1. e4 {[%clk 00:07:03]} {[%emt 00:00:08]} d5 {[%clk 00:07:05]} 2. exd5 {[%clk
00:07:05]} Qxd5 {[%clk 00:07:08]} 3. Nc3 {[%clk 00:07:06]} Qa5 {[%clk
00:07:10]} 4. d4 {[%clk 00:07:06]} {[%emt 00:00:14]} Nf6 {[%clk 00:07:12]} 5.
a3 {[%clk 00:07:08]} c6 {[%clk 00:07:10]} {[%emt 00:00:03]} 6. Bd3 {[%clk
00:07:07]} Bg4 {[%clk 00:07:00]} {[%emt 00:00:18]} 7. Nge2 {[%clk 00:07:07]}
{[%emt 00:00:03]} e6 {[%clk 00:06:48]} {[%emt 00:00:08]} 8. O-O {[%clk
00:06:33]} {[%emt 00:00:36]} Bd6 {[%clk 00:06:45]} {[%emt 00:00:38]} 9. f3
{[%clk 00:06:30]} Bh5 {[%clk 00:06:09]} {[%emt 00:00:13]} 10. Ne4 {[%clk
00:06:31]} {[%emt 00:00:18]} Be7 {[%clk 00:05:25]} {[%emt 00:00:35]} 11. Nf4
{[%clk 00:05:59]} {[%emt 00:00:46]} Nbd7 {[%clk 00:05:08]} {[%emt 00:00:06]} 12.
Nxh5 {[%clk 00:05:43]} {[%emt 00:00:21]} Nxh5 {[%clk 00:05:10]} {[%emt
00:00:04]} 13. Be3 {[%clk 00:05:25]} {[%emt 00:00:15]} O-O {[%clk 00:04:58]}
{[%emt 00:00:23]} 14. b4 {[%clk 00:05:22]} {[%emt 00:00:06]} Qc7 {[%clk
00:04:59]} 15. f4 {[%clk 00:05:19]} {[%emt 00:00:04]} Nhf6 {[%clk 00:04:52]}
{[%emt 00:00:06]} 16. Qf3 {[%clk 00:05:04]} {[%emt 00:00:18]} Nxe4 {[%clk
00:04:47]} {[%emt 00:00:12]} 17. Bxe4 {[%clk 00:05:03]} {[%emt 00:00:03]} a5
{[%clk 00:04:23]} {[%emt 00:00:24]} 18. Rab1 {[%clk 00:04:34]} {[%emt
00:00:32]} f5 {[%clk 00:04:20]} {[%emt 00:00:08]} 19. Bd3 {[%clk 00:04:36]}
{[%emt 00:00:04]} axb4 {[%clk 00:03:59]} {[%emt 00:00:23]} 20. axb4 {[%clk
00:04:37]} {[%emt 00:00:03]} Nf6 {[%clk 00:03:49]} {[%emt 00:00:14]} 21. Rfe1
{[%clk 00:04:26]} {[%emt 00:00:09]} Bd6 {[%clk 00:03:16]} {[%emt 00:00:38]} 22.
Bd2 {[%clk 00:04:24]} {[%emt 00:00:07]} Rfe8 {[%clk 00:02:46]} {[%emt
00:00:29]} 23. g3 {[%clk 00:03:22]} {[%emt 00:01:08]} b5 {[%clk 00:02:39]}
{[%emt 00:00:10]} 24. Re2 {[%clk 00:02:45]} {[%emt 00:00:36]} Nd5 {[%clk
00:02:36]} {[%emt 00:00:15]} 25. Rbe1 {[%clk 00:02:22]} {[%emt 00:00:19]} Bxb4
{[%clk 00:02:11]} {[%emt 00:00:26]} 26. Bxb4 {[%clk 00:02:19]} {[%emt
00:00:15]} Nxb4 {[%clk 00:02:13]} 27. Bxf5 {[%clk 00:02:16]} Qd6 {[%clk
00:01:08]} {[%emt 00:01:07]} 28. c3 {[%clk 00:02:07]} {[%emt 00:00:14]} Nd5
{[%clk 00:01:00]} {[%emt 00:00:09]} 29. Rxe6 {[%clk 00:02:05]} {[%emt
00:00:09]} Rxe6 {[%clk 00:00:58]} {[%emt 00:00:06]} 30. Bxe6+ {[%clk 00:01:39]}
{[%emt 00:00:24]} Kh8 {[%clk 00:00:53]} {[%emt 00:00:19]} 31. Bxd5 {[%clk
00:01:03]} {[%emt 00:00:31]} cxd5 {[%clk 00:00:54]} {[%emt 00:00:03]} 32. Qe2
{[%clk 00:01:02]} {[%emt 00:00:11]} h6 {[%clk 00:00:46]} {[%emt 00:00:04]} 33.
Qxb5 {[%clk 00:01:02]} {[%emt 00:00:03]} Ra3 {[%clk 00:00:10]} {[%emt
00:00:43]} 34. Re8+ {[%clk 00:00:52]} {[%emt 00:00:06]} Kh7 {[%clk 00:00:09]}
{[%emt 00:00:05]} 35. Qd3+ {[%clk 00:00:54]} {[%emt 00:00:03]} g6 {[%clk
00:00:06]} {[%emt 00:00:05]} 36. Qe3 {[%clk 00:00:46]} {[%emt 00:00:08]} Ra1+
{[%clk 00:00:05]} {[%emt 00:00:30]} 37. Kg2 Ra7 38. Qe5 {[%clk 00:00:45]} Qxe5
{[%clk 00:00:06]} {[%emt 00:00:05]} 39. fxe5 {[%clk 00:00:31]} Rc7 {[%clk
00:00:06]} {[%emt 00:00:06]} 40. Rd8 {[%clk 00:00:30]} {[%emt 00:00:04]} Rxc3
{[%clk 00:00:07]} {[%emt 00:00:04]} 41. Rd7+ {[%clk 00:00:30]} Kg8 {[%clk
00:00:09]} 42. Rxd5 {[%clk 00:00:31]} {[%emt 00:00:03]} Kf7 {[%clk 00:00:09]}
43. Rd7+ {[%clk 00:00:32]} {[%emt 00:00:03]} Ke6 {[%clk 00:00:10]} {[%emt
00:00:03]} 44. Rd6+ {[%clk 00:00:34]} Kf7 {[%clk 00:00:08]} {[%emt 00:00:08]}
45. Rf6+ {[%clk 00:00:28]} {[%emt 00:00:10]} Kg7 {[%clk 00:00:07]} 46. d5
{[%clk 00:00:29]} {[%emt 00:00:04]} Re3 {[%clk 00:00:06]} {[%emt 00:00:04]} 47.
Re6 {[%clk 00:00:30]} {[%emt 00:00:07]} Rd3 {[%clk 00:00:05]} 48. d6 {[%clk
00:00:31]} Rd4 {[%clk 00:00:05]} {[%emt 00:00:06]} 49. Re7+ Kf8 {[%emt
00:00:05]} 50. Kf3 {[%clk 00:00:27]} {[%emt 00:00:03]} h5 {[%clk 00:00:09]} 51.
Rh7 {[%clk 00:00:22]} {[%emt 00:00:07]} Rd2 {[%emt 00:00:11]} 52. Ke4 {[%emt
00:00:08]} {Bandera} 1-0

[Event "Cerrado Blitz Quart 2018"]
[Site "Quart (Valencia), Spain"]
[Date "2018.08.30"]
[Round "1.2"]
[White "Galvan, Jesus"]
[Black "Galvan Cipriani, Viviana"]
[Result "1/2-1/2"]
[TimeControl "7 minutos +3s por jugada"]
[WhiteTitle "FM"]
[BlackTitle "WFM"]
[WhiteFideId "3800458"]
[BlackFideId "32041144"]
[WhiteElo "2225"]
[BlackElo "1948"]

1. e4 {[%clk 00:07:02]} {[%emt 00:00:05]} c5 {[%clk 00:07:04]} 2. Nf3 {[%clk
00:07:00]} {[%emt 00:00:14]} Nc6 {[%clk 00:07:03]} {[%emt 00:00:03]} 3. d4
{[%clk 00:06:48]} {[%emt 00:00:08]} cxd4 {[%clk 00:07:03]} {[%emt 00:00:09]} 4.
Nxd4 {[%clk 00:06:48]} {[%emt 00:00:03]} Nf6 {[%clk 00:07:02]} 5. Nc3 {[%clk
00:06:45]} {[%emt 00:00:08]} e5 {[%clk 00:07:00]} {[%emt 00:00:05]} 6. Ndb5
{[%clk 00:06:41]} {[%emt 00:00:11]} d6 {[%clk 00:06:59]} {[%emt 00:00:04]} 7.
Bg5 {[%clk 00:06:40]} a6 {[%clk 00:06:58]} {[%emt 00:00:04]} 8. Na3 {[%clk
00:06:32]} {[%emt 00:00:09]} b5 {[%clk 00:06:58]} {[%emt 00:00:06]} 9. Nd5
{[%clk 00:06:26]} {[%emt 00:00:07]} Qa5+ {[%clk 00:06:54]} {[%emt 00:00:06]} 10.
Bd2 {[%clk 00:06:16]} {[%emt 00:00:13]} Qd8 {[%clk 00:06:53]} {[%emt 00:00:04]}
11. Bg5 {[%clk 00:06:15]} {[%emt 00:00:08]} Qa5+ {[%clk 00:06:42]} {[%emt
00:00:11]} 12. Bd2 {[%clk 00:06:00]} {[%emt 00:00:14]} Qd8 {[%clk 00:06:41]}
{[%emt 00:00:14]} 13. Bg5 {[%clk 00:05:58]} {[%emt 00:00:16]} Qa5+ {[%clk
00:05:52]} {[%emt 00:00:31]} 14. Bd2 {[%clk 00:05:48]} {[%emt 00:00:36]}
1/2-1/2

[Event "Cerrado Blitz Quart 2018"]
[Site "Quart (Valencia), Spain"]
[Date "2018.08.30"]
[Round "1.3"]
[White "Alonso Garcia, Aaron"]
[Black "Lara Lopez, Sergio"]
[Result "1/2-1/2"]
[TimeControl "7 minutos +3s por jugada"]
[WhiteTitle "FM"]
[WhiteFideId "24521060"]
[BlackFideId "2268400"]
[WhiteElo "1604"]
[BlackElo "2165"]

1. e4 {[%emt 00:29:59]} e6 {[%emt 00:00:02]} 2. d4 {[%emt 00:00:02]} d5 {[%emt
00:00:01]} 3. exd5 {[%emt 00:00:02]} exd5 {[%emt 00:00:01]} 4. Bd3 {[%emt
00:00:01]} Nf6 {[%emt 00:00:14]} 5. Nf3 {[%emt 00:00:07]} Bg4 {[%emt 00:00:18]}
6. h3 {[%emt 00:00:04]} Bh5 {[%emt 00:00:02]} 7. O-O {[%emt 00:00:04]} Be7
{[%emt 00:00:02]} 8. Re1 {[%emt 00:00:02]} O-O {[%emt 00:00:02]} 9. Nbd2 {[%emt
00:00:02]} Nbd7 {[%emt 00:00:08]} 10. Nf1 {[%emt 00:00:03]} c6 {[%emt
00:00:07]} 11. Ng3 {[%emt 00:00:03]} Bg6 {[%emt 00:00:02]} 12. Ne5 {[%emt
00:00:07]} Re8 {[%emt 00:00:07]} 13. Nxg6 {[%emt 00:00:08]} hxg6 {[%emt
00:00:03]} 14. c3 {[%emt 00:00:20]} Qc7 {[%emt 00:00:05]} 15. Qf3 {[%emt
00:00:03]} Bd6 {[%emt 00:00:10]} 16. Bg5 {[%emt 00:00:11]} Rxe1+ {[%emt
00:00:16]} 17. Rxe1 Re8 {[%emt 00:00:03]} 18. Rxe8+ {[%emt 00:00:03]} Nxe8
{[%emt 00:00:01]} 19. Ne2 {[%emt 00:00:22]} Nef6 {[%emt 00:00:06]} 20. Bf4
{[%emt 00:00:03]} Bxf4 {[%emt 00:00:05]} 21. Qxf4 Qxf4 {[%emt 00:00:02]} 22.
Nxf4 Kf8 {[%emt 00:00:13]} 23. g4 {[%emt 00:00:20]} Ke7 {[%emt 00:00:06]} 24.
g5 {[%emt 00:00:04]} Ne8 {[%emt 00:00:07]} 25. h4 {[%emt 00:00:04]} Nd6 {[%emt
00:00:09]} 26. Kg2 {[%emt 00:00:05]} Nf8 {[%emt 00:00:09]} 27. Kf3 {[%emt
00:00:17]} Ne6 {[%emt 00:00:03]} 28. Nxe6 {[%emt 00:00:26]} Kxe6 {[%emt
00:00:02]} 29. Kf4 Ne8 {[%emt 00:00:44]} 30. Be2 {[%emt 00:00:14]} Nd6 {[%emt
00:00:28]} 31. Bd3 {[%emt 00:00:21]} Ne8 {[%emt 00:00:08]} 32. f3 {[%emt
00:00:03]} Nd6 {[%emt 00:00:15]} 33. b3 {[%emt 00:00:12]} b6 {[%emt 00:00:13]}
34. c4 {[%emt 00:00:19]} c5 {[%emt 00:00:10]} 35. dxc5 bxc5 36. cxd5+ {[%emt
00:00:48]} Kxd5 {[%emt 00:00:02]} 37. Ke3 {[%emt 00:00:08]} a5 {[%emt
00:00:31]} 38. f4 {[%emt 00:01:09]} c4 {[%emt 00:00:27]} 39. bxc4+ {[%emt
00:00:08]} Nxc4+ {[%emt 00:00:01]} 40. Kf3 {[%emt 00:00:08]} Nd6 {[%emt
00:00:06]} 41. f5 {[%emt 00:00:29]} gxf5 {[%emt 00:00:33]} 42. h5 {[%emt
00:00:01]} Ke5 {[%emt 00:00:12]} 1/2-1/2

[Event "Cerrado Blitz Quart 2018"]
[Site "Quart (Valencia), Spain"]
[Date "2018.08.30"]
[Round "1.4"]
[White "Diaz Velandia, J Manuel"]
[Black "Kovacevic, Slobodan"]
[Result "1/2-1/2"]
[TimeControl "7 minutos +3s por jugada"]
[WhiteTitle "FM"]
[BlackTitle "IM"]
[WhiteFideId "3901939"]
[BlackFideId "902152"]
[WhiteElo "2367"]
[BlackElo "2418"]

1. d4 {[%emt 00:24:21]} Nf6 {[%emt 00:00:02]} 2. g3 {[%emt 00:00:02]} c5 {[%emt
00:00:02]} 3. c3 {[%emt 00:00:02]} e6 {[%emt 00:00:06]} 4. Bg2 Be7 {[%emt
00:00:06]} 5. Nf3 {[%emt 00:00:03]} Qc7 {[%emt 00:00:03]} 6. O-O {[%emt
00:00:02]} b6 {[%emt 00:00:04]} 7. Re1 {[%emt 00:00:12]} Bb7 8. Nbd2 {[%emt
00:00:01]} d6 {[%emt 00:00:04]} 9. e4 {[%emt 00:00:01]} cxd4 {[%emt 00:00:07]}
10. cxd4 {[%emt 00:00:01]} O-O {[%emt 00:00:02]} 11. Ng5 {[%emt 00:00:13]} h6
{[%emt 00:00:10]} 12. Nh3 Nc6 {[%emt 00:00:05]} 13. Nb3 {[%emt 00:00:01]} Rac8
{[%emt 00:00:03]} 14. Bd2 {[%emt 00:00:11]} Rfd8 {[%emt 00:00:03]} 15. Rc1
{[%emt 00:00:03]} d5 {[%emt 00:00:03]} 16. e5 {[%emt 00:00:02]} Ne4 {[%emt
00:00:04]} 17. Be3 {[%emt 00:00:14]} Qd7 {[%emt 00:00:10]} 18. a3 {[%emt
00:00:20]} a5 {[%emt 00:00:07]} 19. f3 {[%emt 00:00:02]} Ng5 {[%emt 00:00:02]}
20. Nxg5 {[%emt 00:00:02]} Bxg5 {[%emt 00:00:07]} 21. f4 {[%emt 00:00:11]} Be7
{[%emt 00:00:02]} 22. g4 {[%emt 00:00:05]} a4 {[%emt 00:00:11]} 23. Nd2 {[%emt
00:00:01]} Na5 1/2-1/2

[Event "Cerrado Blitz Quart 2018"]
[Site "Quart (Valencia), Spain"]
[Date "2018.08.30"]
[Round "1.5"]
[White "Chernikov, Vladimir"]
[Black "Ordoñez Carrasco, Jorge"]
[Result "1-0"]
[TimeControl "7 minutos +3s por jugada"]
[WhiteFideId "14112914"]
[BlackFideId "24529826"]
[WhiteElo "2035"]
[BlackElo "1531"]

1. b3 {[%emt 00:26:01]} Nf6 {[%emt 00:00:04]} 2. Bb2 g6 {[%emt 00:00:02]} 3.
Bxf6 {[%emt 00:00:02]} exf6 4. c4 {[%emt 00:00:03]} Bg7 5. Nc3 {[%emt
00:00:04]} Nc6 6. g3 {[%emt 00:00:22]} O-O 7. Bg2 {[%emt 00:00:19]} Re8 8. e3
{[%emt 00:00:32]} d6 {[%emt 00:00:26]} 9. Nge2 {[%emt 00:00:04]} Bg4 {[%emt
00:00:55]} 10. h3 {[%emt 00:00:08]} Bxe2 {[%emt 00:00:02]} 11. Nxe2 {[%emt
00:00:26]} Qd7 {[%emt 00:00:19]} 12. O-O {[%emt 00:00:04]} f5 {[%emt 00:00:15]}
13. d4 {[%emt 00:00:03]} a6 {[%emt 00:00:36]} 14. Rc1 {[%emt 00:00:14]} Rab8
{[%emt 00:00:38]} 15. Nf4 {[%emt 00:00:08]} Ne7 {[%emt 00:00:35]} 16. Qc2
{[%emt 00:00:14]} c6 {[%emt 00:00:17]} 17. Nd3 {[%emt 00:00:13]} a5 {[%emt
00:00:23]} 18. a3 {[%emt 00:00:05]} Kh8 {[%emt 00:00:08]} 19. Rfd1 {[%emt
00:00:01]} Ng8 {[%emt 00:00:10]} 20. b4 {[%emt 00:00:04]} axb4 {[%emt
00:00:01]} 21. axb4 {[%emt 00:00:01]} Nf6 {[%emt 00:00:09]} 22. Ra1 {[%emt
00:00:38]} Ra8 {[%emt 00:00:12]} 23. Ra4 {[%emt 00:00:01]} Ne4 {[%emt
00:00:20]} 24. Rda1 {[%emt 00:00:02]} Rxa4 {[%emt 00:00:03]} 25. Rxa4 {[%emt
00:00:07]} Qc7 {[%emt 00:00:12]} 26. Ra7 {[%emt 00:00:11]} Qb6 {[%emt
00:00:19]} 27. Qa2 {[%emt 00:00:23]} h6 {[%emt 00:00:11]} 28. Qa5 {[%emt
00:00:33]} Qxa5 {[%emt 00:00:05]} 29. bxa5 {[%emt 00:00:19]} Re7 {[%emt
00:00:09]} 30. Bxe4 {[%emt 00:00:04]} fxe4 31. Nb4 {[%emt 00:00:02]} c5 {[%emt
00:00:34]} 32. Nd5 {[%emt 00:00:02]} Rd7 {[%emt 00:00:03]} 33. dxc5 {[%emt
00:00:03]} dxc5 {[%emt 00:00:03]} 34. a6 {[%emt 00:00:02]} Be5 {[%emt
00:00:19]} 35. Rxb7 {[%emt 00:00:12]} Rd8 {[%emt 00:00:07]} 36. Rxf7 {[%emt
00:00:06]} Ra8 {[%emt 00:00:02]} 1-0

[Event "Cerrado Blitz Quart 2018"]
[Site "Quart (Valencia), Spain"]
[Date "2018.08.30"]
[Round "2.1"]
[White "Pena Riasco, Alexander"]
[Black "Ordoñez Carrasco, Jorge"]
[Result "0-1"]
[TimeControl "7 minutos +3s por jugada"]
[WhiteTitle "FM"]
[WhiteFideId "4403339"]
[BlackFideId "24529826"]
[WhiteElo "2119"]
[BlackElo "1531"]

1. d4 {[%clk 00:07:06]} Nf6 {[%clk 00:07:05]} {[%emt 00:00:03]} 2. Nf3 {[%clk
00:07:07]} g6 {[%clk 00:07:07]} {[%emt 00:00:03]} 3. Bf4 {[%clk 00:07:08]} Bg7
{[%clk 00:07:07]} {[%emt 00:00:03]} 4. e3 {[%clk 00:07:11]} d6 {[%clk
00:07:09]} 5. Be2 {[%clk 00:07:06]} {[%emt 00:00:06]} O-O {[%clk 00:07:10]}
{[%emt 00:00:11]} 6. h3 {[%clk 00:07:08]} Nfd7 {[%clk 00:07:00]} {[%emt
00:00:04]} 7. O-O {[%clk 00:07:00]} {[%emt 00:00:40]} e5 {[%clk 00:07:02]} 8.
Bh2 {[%clk 00:06:58]} {[%emt 00:00:03]} Nc6 {[%clk 00:06:52]} 9. c4 {[%clk
00:06:53]} {[%emt 00:00:04]} f5 {[%clk 00:06:48]} {[%emt 00:00:03]} 10. Nc3
{[%clk 00:06:18]} {[%emt 00:00:37]} e4 {[%clk 00:06:17]} {[%emt 00:00:32]} 11.
Nd2 {[%clk 00:06:16]} {[%emt 00:00:14]} g5 {[%clk 00:06:04]} {[%emt 00:00:06]}
12. Rc1 {[%clk 00:05:33]} {[%emt 00:00:46]} Nf6 {[%clk 00:05:33]} {[%emt
00:00:37]} 13. a3 {[%clk 00:04:39]} {[%emt 00:00:54]} Ne7 {[%clk 00:04:44]}
{[%emt 00:00:54]} 14. b4 {[%clk 00:04:17]} {[%emt 00:00:26]} Ng6 {[%clk
00:04:33]} {[%emt 00:00:11]} 15. c5 {[%clk 00:04:09]} {[%emt 00:00:14]} d5
{[%clk 00:04:08]} {[%emt 00:00:26]} 16. b5 {[%emt 00:01:54]} Rf7 {[%clk
00:03:17]} {[%emt 00:00:17]} 17. b6 {[%clk 00:01:31]} {[%emt 00:01:27]} axb6
{[%clk 00:02:53]} {[%emt 00:00:27]} 18. cxb6 {[%clk 00:01:31]} {[%emt
00:00:08]} c6 {[%clk 00:02:55]} 19. Bc7 {[%clk 00:01:29]} Qe7 {[%clk 00:02:44]}
{[%emt 00:00:17]} 20. Kh2 {[%clk 00:00:12]} {[%emt 00:01:17]} Rxa3 {[%clk
00:02:01]} {[%emt 00:00:45]} 21. Nb3 {[%clk 00:00:12]} {[%emt 00:00:17]} Ra8
{[%clk 00:01:52]} {[%emt 00:00:04]} 22. Nc5 {[%clk 00:00:12]} {[%emt 00:00:05]}
f4 {[%clk 00:01:39]} {[%emt 00:00:09]} 23. Ra1 {[%clk 00:00:14]} {[%emt
00:00:32]} Rxa1 24. Qxa1 h5 {[%clk 00:00:58]} {[%emt 00:00:16]} 25. Qa7 {[%clk
00:00:15]} {[%emt 00:00:10]} g4 {[%clk 00:00:40]} {[%emt 00:00:16]} 26. exf4
{[%clk 00:00:09]} {[%emt 00:00:09]} Nd7 {[%clk 00:00:15]} {[%emt 00:00:35]} 27.
Nxb7 {[%emt 00:00:35]} Nf6 {[%emt 00:00:15]} {Bandera} 0-1

[Event "Cerrado Blitz Quart 2018"]
[Site "Quart (Valencia), Spain"]
[Date "2018.08.30"]
[Round "2.2"]
[White "Kovacevic, Slobodan"]
[Black "Chernikov, Vladimir"]
[Result "1-0"]
[TimeControl "7 minutos +3s por jugada"]
[WhiteTitle "IM"]
[WhiteFideId "902152"]
[BlackFideId "14112914"]
[WhiteElo "2418"]
[BlackElo "2035"]

1. d4 {[%clk 00:07:05]} Nf6 {[%clk 00:07:02]} {[%emt 00:00:14]} 2. Nf3 {[%clk
00:07:06]} d6 {[%clk 00:06:56]} {[%emt 00:00:05]} 3. Bf4 {[%clk 00:07:03]}
{[%emt 00:00:05]} g6 {[%clk 00:06:57]} {[%emt 00:00:04]} 4. Nbd2 {[%clk
00:07:04]} {[%emt 00:00:06]} Bg7 {[%clk 00:06:58]} 5. c3 {[%clk 00:06:59]}
{[%emt 00:00:05]} Nh5 {[%clk 00:06:40]} {[%emt 00:00:18]} 6. Bg5 {[%clk
00:07:00]} {[%emt 00:00:11]} h6 {[%clk 00:06:40]} 7. Bh4 {[%clk 00:07:01]} g5
{[%clk 00:06:40]} 8. Bg3 {[%clk 00:07:03]} f5 {[%clk 00:06:23]} {[%emt
00:00:56]} 9. e3 {[%clk 00:06:59]} Nxg3 {[%clk 00:05:46]} {[%emt 00:00:13]} 10.
hxg3 {[%clk 00:07:00]} {[%emt 00:00:03]} e5 {[%clk 00:05:31]} {[%emt 00:00:16]}
11. dxe5 {[%clk 00:05:09]} {[%emt 00:01:53]} dxe5 {[%clk 00:05:31]} {[%emt
00:00:35]} 12. e4 {[%clk 00:05:11]} f4 {[%clk 00:04:49]} {[%emt 00:00:15]} 13.
gxf4 {[%clk 00:05:12]} {[%emt 00:00:10]} exf4 {[%clk 00:04:47]} {[%emt
00:00:04]} 14. Qb3 {[%clk 00:05:07]} {[%emt 00:00:03]} Qe7 {[%clk 00:04:17]}
{[%emt 00:00:30]} 15. O-O-O {[%clk 00:04:58]} {[%emt 00:00:24]} Nd7 {[%clk
00:03:42]} {[%emt 00:00:28]} 16. Bc4 {[%clk 00:04:21]} {[%emt 00:00:37]} Nc5
{[%clk 00:03:38]} {[%emt 00:00:14]} 17. Qc2 {[%clk 00:04:17]} {[%emt 00:00:05]}
Bg4 {[%clk 00:03:17]} {[%emt 00:00:58]} 18. Nb3 {[%clk 00:03:45]} {[%emt
00:00:03]} Nd7 {[%clk 00:02:13]} {[%emt 00:01:13]} 19. Nbd4 {[%clk 00:03:26]}
{[%emt 00:00:15]} Bxd4 {[%clk 00:00:42]} {[%emt 00:01:29]} 20. cxd4 {[%clk
00:03:05]} {[%emt 00:00:23]} O-O-O {[%clk 00:00:44]} {[%emt 00:00:39]} 21. Kb1
{[%emt 00:00:04]} Kb8 22. Be2 {[%clk 00:02:22]} {[%emt 00:00:14]} Nf6 {[%clk
00:00:39]} {[%emt 00:00:10]} 23. Ne5 {[%clk 00:02:17]} {[%emt 00:00:05]} Bxe2
{[%clk 00:00:40]} {[%emt 00:00:03]} 24. Qxe2 {[%clk 00:02:19]} Rxd4 {[%clk
00:00:20]} {[%emt 00:00:21]} 25. Rxd4 {[%clk 00:02:11]} {[%emt 00:00:16]} Qxe5
{[%clk 00:00:22]} {[%emt 00:00:08]} 26. Qd3 {[%clk 00:02:05]} {[%emt 00:00:04]}
a6 {[%clk 00:00:15]} {[%emt 00:00:05]} 27. f3 {[%clk 00:02:02]} {[%emt
00:00:07]} h5 {[%clk 00:00:13]} {[%emt 00:00:12]} 28. Rc1 {[%clk 00:01:55]}
{[%emt 00:00:03]} g4 {[%clk 00:00:12]} {[%emt 00:00:04]} 29. Rd8+ {[%clk
00:01:53]} {[%emt 00:00:04]} Rxd8 {[%clk 00:00:14]} {[%emt 00:00:04]} 30. Qxd8+
{[%clk 00:01:56]} Ka7 {[%clk 00:00:16]} 31. Qxc7 {[%clk 00:01:45]} {[%emt
00:00:14]} Qb5 {[%clk 00:00:09]} {[%emt 00:00:08]} 32. Qc5+ {[%clk 00:01:42]}
{[%emt 00:00:06]} Qxc5 {[%clk 00:00:11]} {[%emt 00:00:03]} 33. Rxc5 {[%clk
00:01:44]} h4 {[%clk 00:00:14]} 34. fxg4 {[%clk 00:01:41]} {[%emt 00:00:06]}
Nxe4 {[%clk 00:00:15]} {[%emt 00:00:04]} 35. Rh5 {[%clk 00:01:40]} {[%emt
00:00:03]} f3 {[%clk 00:00:12]} {[%emt 00:00:06]} 36. gxf3 {[%clk 00:01:39]}
{[%emt 00:00:05]} Nd2+ {[%clk 00:00:14]} 37. Ka1 {[%clk 00:01:39]} {[%emt
00:00:03]} Nxf3 {[%clk 00:00:16]} 38. g5 {[%clk 00:01:41]} {[%emt 00:00:04]} h3
{[%clk 00:00:17]} 39. g6 {[%clk 00:01:39]} {[%emt 00:00:03]} h2 {[%clk
00:00:18]} {[%emt 00:00:04]} 40. Rxh2 {[%clk 00:01:34]} {[%emt 00:00:11]} 1-0